bitfinex/quotes_BTCUSD_20250519
["timestamp","ask_amount","ask_price","bid_price","bid_amount"]
[1747662430000,0.00014395,103150.0,103140.0,1.42738854]
[1747662430850,0.0174321,103160.0,103150.0,0.5954751]
[1747662431018,0.0174321,103160.0,103150.0,0.6927845]
[1747662432072,0.0114321,103160.0,103150.0,0.6967845]
[1747662432284,0.0114321,103160.0,103150.0,1.09988692]
[1747662432960,0.0114321,103160.0,103150.0,1.10488692]
[1747662433789,0.00368241,103160.0,103150.0,1.10488692]
[1747662433994,0.0011,103170.0,103150.0,1.08549816]
[1747662434199,0.0011,103170.0,103160.0,0.69436289]
[1747662434563,0.0011,103170.0,103160.0,0.93322531]
[1747662435379,0.0011,103170.0,103160.0,0.93622531]
[1747662435586,0.0011,103170.0,103160.0,0.93618531]
[1747662435789,0.0011,103170.0,103160.0,1.33618531]
[1747662437628,0.0011,103170.0,103160.0,1.33918531]
[1747662438726,0.0011,103170.0,103160.0,1.10346531]
[1747662438923,0.0011,103170.0,103160.0,1.06936531]
[1747662439275,0.0011,103170.0,103160.0,1.11905505]
[1747662439677,0.20797856,103190.0,103180.0,0.21321913]
[1747662439874,0.20212246,103190.0,103180.0,0.21321913]
[1747662440388,0.01938519,103170.0,103160.0,0.03098323]
[1747662440617,0.01938462,103170.0,103160.0,0.24124304]
[1747662440790,0.02907726,103170.0,103160.0,0.22395339]
[1747662440981,0.02907726,103170.0,103160.0,0.23364641]
[1747662441179,0.21323989,103170.0,103160.0,0.001]
[1747662441705,0.21323989,103170.0,103160.0,0.21056726]
[1747662441959,0.21323989,103170.0,103160.0,0.22995414]
[1747662442156,0.21323989,103170.0,103160.0,0.23664734]
[1747662442481,0.21323989,103170.0,103160.0,0.22395414]
[1747662442689,0.20354744,103170.0,103160.0,0.22595433]
[1747662442900,0.20354744,103170.0,103160.0,0.23564772]
[1747662443125,0.1938548,103170.0,103160.0,0.01269367]
[1747662443330,0.1938548,103170.0,103160.0,0.21626065]
[1747662443537,0.79634472,103170.0,103160.0,0.003]
[1747662443789,0.91105412,103170.0,103160.0,0.003]
[1747662443930,1.25068404,103170.0,103160.0,0.003]
[1747662444153,1.60522489,103170.0,103160.0,0.004]
[1747662444731,1.60522489,103170.0,103160.0,0.003]
[1747662445128,1.60522489,103170.0,103160.0,0.001]
[1747662445580,1.61522489,103170.0,103160.0,0.001]
[1747662445730,2.03478489,103170.0,103160.0,0.001]
[1747662446139,2.04478489,103170.0,103160.0,0.001]
[1747662446585,1.26784079,103150.0,103140.0,0.001]
[1747662446784,1.26888027,103150.0,103140.0,0.001]
[1747662447399,1.28342112,103150.0,103140.0,0.001]
[1747662447573,1.63305104,103150.0,103140.0,0.001]
[1747662447748,1.64305104,103150.0,103140.0,0.001]
[1747662448388,1.30342112,103150.0,103140.0,0.001]
[1747662448799,1.64305104,103150.0,103140.0,0.001]
[1747662449406,1.74036044,103150.0,103140.0,0.001]
[1747662449600,1.73036044,103150.0,103140.0,0.001]
[1747662449831,0.61229309,103130.0,103120.0,0.001]
[1747662450037,1.37584249,103130.0,103120.0,0.00114395]
[1747662450276,1.38548216,103130.0,103120.0,0.00114395]
[1747662451727,1.38748216,103130.0,103120.0,0.00114395]
[1747662451938,2.16442148,103130.0,103120.0,0.00114395]
[1747662452280,1.82479156,103130.0,103120.0,0.00114395]
[1747662453939,1.81515189,103130.0,103120.0,0.00114395]
[1747662454878,0.60480455,103110.0,103100.0,0.001]
[1747662455085,1.62481379,103110.0,103100.0,0.001]
[1747662455224,1.63481379,103110.0,103100.0,0.001]
[1747662456756,1.73691379,103110.0,103100.0,0.001]
[1747662456989,0.71211395,103110.0,103100.0,0.002]
[1747662457194,0.71211395,103110.0,103100.0,0.20568564]
[1747662457195,0.10700702,103110.0,103100.0,0.20568564]
[1747662457395,0.23275913,103110.0,103100.0,0.20468564]
[1747662457570,0.23275979,103110.0,103100.0,0.21638467]
[1747662457775,0.5452958,103110.0,103100.0,0.001]
[1747662458010,0.65714605,103110.0,103100.0,0.001]
[1747662458270,0.31651613,103110.0,103100.0,0.00410185]
[1747662458479,0.65514605,103110.0,103100.0,0.00410185]
[1747662458956,1.33477597,103110.0,103100.0,0.00510185]
[1747662459155,0.99514605,103110.0,103100.0,0.00510185]
[1747662459709,0.65551613,103110.0,103100.0,0.00510185]
[1747662459911,1.13116661,103110.0,103100.0,0.00510185]
[1747662461326,1.11266661,103110.0,103100.0,0.00510185]
[1747662461532,0.65551613,103110.0,103100.0,0.00510185]
[1747662461735,0.65551613,103110.0,103100.0,0.19908827]
[1747662461736,0.11670568,103110.0,103100.0,0.19908827]
[1747662461931,0.2230616,103110.0,103100.0,0.25468643]
[1747662462192,0.21336022,103120.0,103100.0,0.26438452]
[1747662462317,0.02909108,103120.0,103110.0,0.2592616]
[1747662462515,0.02909108,103120.0,103110.0,0.23986588]
[1747662462516,0.23273721,103120.0,103110.0,0.23986588]
[1747662462731,0.22304034,103120.0,103110.0,0.24956407]
[1747662462933,0.22304034,103120.0,103110.0,0.66236401]
[1747662463662,0.03009089,103120.0,103110.0,0.68175964]
[1747662463864,0.04948566,103120.0,103110.0,0.68175964]
[1747662464067,0.01069668,103120.0,103110.0,0.68175964]
[1747662464277,0.001,103120.0,103110.0,0.68175964]
[1747662464500,0.01953556,103130.0,103120.0,0.25873997]
[1747662464723,0.00014379,103130.0,103120.0,0.25873997]
[1747662464957,0.23285797,103130.0,103120.0,0.25874006]
[1747662465165,0.03892798,103130.0,103120.0,0.25874006]
[1747662465385,0.03892798,103130.0,103120.0,0.27153869]
[1747662465591,0.02923158,103130.0,103120.0,0.27153869]
[1747662465797,0.23285863,103130.0,103120.0,0.25214504]
[1747662466009,0.23285863,103130.0,103120.0,0.27153887]
[1747662466228,0.00014379,103130.0,103120.0,0.37854505]
[1747662466438,0.0183865,103160.0,103150.0,0.21326538]
[1747662466652,0.17609711,103180.0,103160.0,0.21326065]
[1747662466653,0.00969236,103170.0,103160.0,0.21326065]
[1747662466860,0.18593283,103180.0,103170.0,0.20354754]
[1747662467066,0.23274523,103180.0,103170.0,0.21324018]
[1747662467298,0.01938434,103170.0,103160.0,0.2509465]
[1747662467502,0.02907633,103170.0,103160.0,0.2700465]
[1747662467704,0.00969189,103170.0,103160.0,0.2700465]
[1747662467913,0.01938397,103170.0,103160.0,0.2700465]
[1747662468109,0.03876879,103170.0,103160.0,0.2700466]
[1747662468334,0.02907624,103170.0,103160.0,0.2700466]
[1747662468498,0.02907624,103170.0,103160.0,0.273147]
[1747662468676,0.01938397,103170.0,103160.0,0.273147]
[1747662468884,0.02907614,103170.0,103160.0,0.273147]
[1747662469284,0.21336305,103180.0,103170.0,0.25803216]
[1747662469491,0.21336305,103180.0,103170.0,0.25803235]
[1747662469877,0.21336305,103180.0,103170.0,0.24174794]
[1747662470088,0.21336305,103180.0,103170.0,0.03019314]
[1747662470293,0.20367163,103180.0,103170.0,0.03019314]
[1747662470503,0.19397993,103180.0,103170.0,0.0061004]
[1747662470914,0.19397993,103180.0,103170.0,0.4061004]
[1747662471386,0.00014392,103180.0,103170.0,0.66103197]
[1747662471587,0.00983487,103180.0,103170.0,0.67372405]
[1747662471796,0.22305382,103180.0,103170.0,0.67372405]
[1747662472016,0.22305467,103180.0,103170.0,0.64464744]
[1747662472222,0.22305467,103180.0,103170.0,0.66403216]
[1747662472721,0.21321942,103180.0,103170.0,0.67372424]
[1747662473009,0.00969133,103180.0,103170.0,0.67372424]
[1747662473179,0.03876549,103180.0,103170.0,0.67372424]
[1747662473365,0.01938237,103180.0,103170.0,0.67372424]
[1747662473767,0.01069048,103190.0,103180.0,0.25981027]
[1747662473977,0.001,103190.0,103180.0,0.25981027]
[1747662474494,0.001,103190.0,103180.0,0.65981027]
[1747662474695,0.03007117,103190.0,103180.0,0.65981027]
[1747662474900,0.0203805,103190.0,103180.0,0.66081027]
[1747662475116,0.01069001,103190.0,103180.0,0.66081027]
[1747662475318,0.001,103190.0,103180.0,0.75711967]
[1747662475741,0.001,103190.0,103180.0,0.76011967]
[1747662476541,0.001,103190.0,103180.0,0.76111967]
[1747662476958,0.001,103190.0,103180.0,0.76011967]
[1747662477155,0.001,103190.0,103180.0,0.76211967]
[1747662478455,0.001,103190.0,103180.0,1.10211967]
[1747662479296,0.001,103190.0,103180.0,1.09911967]
[1747662479541,0.001,103190.0,103180.0,1.09711967]
[1747662480259,0.001,103190.0,103180.0,1.10111967]
[1747662480463,0.00968926,103200.0,103190.0,0.25938867]
[1747662480677,0.0668638,103200.0,103190.0,0.23229866]
[1747662480877,0.01937871,103200.0,103190.0,0.25167934]
[1747662481293,0.01068842,103210.0,103200.0,0.21317762]
[1747662481440,0.2335338,103210.0,103200.0,0.21317762]
[1747662481642,0.03006525,103210.0,103200.0,0.22286688]
[1747662481854,0.03975403,103210.0,103200.0,0.22286697]
[1747662482037,0.03975403,103210.0,103200.0,0.62286697]
[1747662482237,0.04944282,103210.0,103200.0,0.63255623]
[1747662482647,0.24322334,103210.0,103200.0,0.63255623]
[1747662482868,0.001,103210.0,103200.0,0.66915623]
[1747662484909,0.001,103210.0,103200.0,0.26915623]
[1747662485605,0.001,103210.0,103200.0,0.66915623]
[1747662485776,0.001,103210.0,103200.0,0.76646563]
[1747662486585,0.001,103210.0,103200.0,1.01694563]
[1747662487162,0.001,103210.0,103200.0,1.02192092]
[1747662488393,0.001,103210.0,103200.0,1.02502087]
[1747662489535,0.001,103210.0,103200.0,1.03489733]
[1747662490377,0.001,103210.0,103200.0,0.78441733]
[1747662490731,0.03006553,103210.0,103200.0,0.77454087]
[1747662490929,0.01068823,103210.0,103200.0,0.63094221]
[1747662491127,0.001,103210.0,103200.0,0.63094221]
[1747662491577,0.001,103210.0,103200.0,0.66904221]
[1747662493065,0.001,103210.0,103200.0,0.76635161]
[1747662493848,0.001,103210.0,103200.0,0.77608802]
[1747662494842,0.001,103210.0,103200.0,0.77708802]
[1747662495233,0.001,103210.0,103200.0,0.77608802]
[1747662495436,0.001,103210.0,103200.0,0.77808802]
[1747662495818,0.001,103210.0,103200.0,0.77908802]
[1747662496016,0.001,103210.0,103200.0,0.78208802]
[1747662496883,0.001,103210.0,103200.0,0.77235161]
[1747662497192,0.02037692,103210.0,103200.0,0.65694221]
[1747662497404,0.21415697,103210.0,103200.0,0.41407524]
[1747662497612,0.02037674,103210.0,103200.0,0.6369423]
[1747662497810,0.01068823,103210.0,103200.0,0.6369423]
[1747662497953,0.001,103210.0,103200.0,0.6369423]
[1747662498161,0.00937655,103210.0,103200.0,0.6369423]
[1747662498361,0.01906478,103210.0,103200.0,0.6369423]
[1747662498586,0.0384418,103210.0,103200.0,0.6369423]
[1747662498791,0.0287532,103210.0,103200.0,0.6369423]
[1747662499322,0.0384418,103210.0,103200.0,0.6369423]
[1747662499489,0.0287532,103210.0,103200.0,0.6369423]
[1747662499906,0.0384419,103210.0,103200.0,0.6369423]
[1747662500250,0.0384418,103210.0,103200.0,0.6369423]
[1747662500421,0.0287532,103210.0,103200.0,0.6369423]
[1747662500659,0.0384418,103210.0,103200.0,0.6369423]
[1747662500872,0.52006314,103230.0,103220.0,0.0193758]
[1747662501076,0.5297494,103230.0,103220.0,0.23251173]
[1747662501278,0.51051994,103230.0,103220.0,0.23561168]
[1747662501461,0.52989311,103230.0,103220.0,0.23561168]
[1747662501723,0.52989424,103230.0,103220.0,0.23561187]
[1747662501928,0.72363636,103230.0,103220.0,0.23561197]
[1747662502136,0.76243636,103230.0,103220.0,0.20654879]
[1747662502270,0.76243636,103230.0,103220.0,0.21623664]
[1747662502466,0.75274963,103230.0,103220.0,0.21623655]
[1747662502693,0.75274963,103230.0,103220.0,0.22592421]
[1747662502901,0.75274963,103230.0,103220.0,0.23561178]
[1747662503121,0.52989405,103230.0,103220.0,0.24529926]
[1747662503294,0.72363617,103230.0,103220.0,0.23561178]
[1747662503492,0.72363617,103230.0,103220.0,0.22592421]
[1747662503994,0.72363617,103230.0,103220.0,0.23561178]
[1747662504492,0.72363617,103230.0,103220.0,0.63561178]
[1747662506308,0.72363617,103230.0,103220.0,0.64529916]
[1747662506711,6e-05,103240.0,103220.0,0.68486826]
[1747662506914,6e-05,103240.0,103230.0,0.2597023]
[1747662506915,0.00053947,103240.0,103230.0,0.2597023]
[1747662507183,0.00053947,103240.0,103230.0,0.5997023]
[1747662507383,0.0153607,103260.0,103250.0,0.22275915]
[1747662507766,0.0153607,103260.0,103250.0,0.26195915]
[1747662508117,0.0153607,103260.0,103250.0,0.27145961]
[1747662508649,0.0153607,103260.0,103250.0,0.27345961]
[1747662509121,0.0153607,103260.0,103250.0,0.27655956]
[1747662509892,0.0153607,103260.0,103250.0,0.27755956]
[1747662510914,0.0093607,103260.0,103250.0,0.27755956]
[1747662513226,0.0093607,103260.0,103250.0,0.52491956]
[1747662514295,0.01904414,103260.0,103250.0,0.22867499]
[1747662514512,0.01904414,103260.0,103250.0,0.52341956]
[1747662514513,0.0093607,103260.0,103250.0,0.52341956]
[1747662514973,0.00952634,103260.0,103250.0,0.52341956]
[1747662515897,0.0093607,103260.0,103250.0,0.52325392]
[1747662517331,0.56010155,103260.0,103250.0,0.01560041]
[1747662517773,0.60080155,103260.0,103250.0,0.01560041]
[1747662517967,0.69811095,103260.0,103250.0,0.01560041]
[1747662518498,0.36042404,103260.0,103250.0,0.01560041]
[1747662518707,0.69211095,103260.0,103250.0,0.01560041]
[1747662519135,0.05947167,103240.0,103230.0,0.0044858]
[1747662519361,0.21315697,103210.0,103200.0,0.001]
[1747662519559,1.28380104,103210.0,103200.0,0.00147947]
[1747662519765,0.21319829,103190.0,103180.0,0.41230712]
[1747662519976,0.6481946,103190.0,103180.0,0.41230712]
[1747662520184,0.64834003,103190.0,103180.0,0.41245102]
[1747662520411,0.65777137,103190.0,103180.0,0.01245102]
[1747662520623,0.64834003,103190.0,103180.0,0.20628703]
[1747662520828,0.00014543,103190.0,103180.0,0.63536129]
[1747662521040,0.02921594,103190.0,103180.0,0.63536129]
[1747662521263,0.03890623,103190.0,103180.0,0.63536129]
[1747662521464,0.04845147,103190.0,103180.0,0.63821586]
[1747662521815,0.21319838,103190.0,103180.0,0.62852491]
[1747662522025,0.21319838,103190.0,103180.0,0.61721779]
[1747662522551,0.01938115,103190.0,103180.0,0.62890902]
[1747662522756,0.03876202,103190.0,103180.0,0.63860016]
[1747662522967,0.02907126,103190.0,103180.0,0.63860016]
[1747662523180,0.03876202,103190.0,103180.0,0.63660016]
[1747662523387,0.23257991,103190.0,103180.0,0.62690921]
[1747662523595,0.02907182,103190.0,103180.0,0.63360044]
[1747662523802,0.20349039,103200.0,103180.0,0.61421666]
[1747662524013,0.00968954,103200.0,103190.0,0.21319829]
[1747662524279,0.02906853,103200.0,103190.0,0.22288849]
[1747662524473,0.23255689,103200.0,103190.0,0.22288849]
[1747662524688,0.23270232,103200.0,103190.0,0.62288849]
[1747662524889,0.23270232,103200.0,103190.0,0.61319829]
[1747662525104,0.02921396,103200.0,103190.0,0.62288849]
[1747662525308,0.03021396,103200.0,103190.0,0.62288849]
[1747662525716,0.23370232,103200.0,103190.0,0.62288858]
[1747662525952,0.001,103200.0,103190.0,0.63243335]
[1747662526159,0.01068907,103200.0,103190.0,0.63243335]
[1747662526564,0.001,103200.0,103190.0,0.74824275]
[1747662526769,0.001,103200.0,103190.0,0.76924275]
[1747662526979,0.02906271,103220.0,103210.0,0.00968832]
[1747662527201,0.16766832,103230.0,103210.0,0.19377917]
[1747662527401,0.30075833,103220.0,103210.0,0.20346815]
[1747662527611,0.30075833,103220.0,103210.0,0.21315694]
[1747662527819,0.01937702,103210.0,103200.0,0.21316102]
[1747662528026,0.02906553,103210.0,103200.0,0.21316102]
[1747662528230,0.03875432,103210.0,103200.0,0.22204078]
[1747662528447,0.02906553,103210.0,103200.0,0.22204078]
[1747662528597,0.03875432,103210.0,103200.0,0.22204078]
[1747662528939,0.02906553,103210.0,103200.0,0.22204078]
[1747662529112,0.02921096,103210.0,103200.0,0.22204078]
[1747662529285,0.001,103230.0,103220.0,0.22282388]
[1747662529679,0.01068626,103230.0,103220.0,0.22282388]
[1747662529875,0.001,103230.0,103220.0,0.62282388]
[1747662530538,0.001,103230.0,103220.0,0.62582388]
[1747662531078,0.001,103230.0,103220.0,0.62782388]
[1747662531318,0.03874305,103240.0,103220.0,0.62782388]
[1747662531319,0.03374305,103240.0,103230.0,0.2228023]
[1747662531567,0.13105245,103240.0,103230.0,0.2228023]
[1747662531734,0.12136704,103240.0,103230.0,0.20342913]
[1747662531956,0.3150904,103240.0,103230.0,0.22280267]
[1747662532155,0.32477656,103240.0,103230.0,0.21311604]
[1747662532375,0.32477656,103240.0,103230.0,0.22280286]
[1747662532577,0.20342913,103230.0,103220.0,0.60644874]
[1747662532743,0.21311604,103230.0,103220.0,0.6131364]
[1747662532950,0.01937307,103230.0,103220.0,0.62282378]
[1747662533371,0.02905989,103230.0,103220.0,0.62282378]
[1747662533569,0.03889223,103230.0,103220.0,0.62282378]
[1747662533807,0.03889223,103230.0,103220.0,0.62782378]
[1747662534149,0.31057068,103230.0,103220.0,0.405]
[1747662534360,1.50277646,103230.0,103220.0,0.405]
[1747662534580,1.51717188,103230.0,103220.0,0.40485457]
[1747662534788,1.85717188,103230.0,103220.0,0.40485457]
[1747662534996,1.85717188,103230.0,103220.0,0.005]
[1747662535421,1.85717188,103230.0,103220.0,0.003]
[1747662535620,0.22284547,103210.0,103200.0,0.61417315]
[1747662535822,0.32015487,103210.0,103200.0,0.61431705]
[1747662536078,0.32015478,103210.0,103200.0,0.61431705]
[1747662536314,0.32015478,103210.0,103200.0,0.4011439]
[1747662536486,0.80817224,103210.0,103200.0,0.4011439]
[1747662536632,0.31046646,103210.0,103200.0,0.4011439]
[1747662537188,0.31046646,103210.0,103200.0,0.4041439]
[1747662537422,0.11668679,103210.0,103200.0,0.60663216]
[1747662537631,0.24124,103220.0,103210.0,0.19377967]
[1747662537833,0.24124,103220.0,103210.0,0.22284547]
[1747662537834,0.35792408,103220.0,103210.0,0.22284547]
[1747662537941,0.14574745,103220.0,103210.0,0.22284547]
[1747662538150,0.14589288,103220.0,103210.0,0.22284547]
[1747662538353,0.00983263,103220.0,103210.0,0.22284547]
[1747662538573,0.02920758,103220.0,103210.0,0.22284547]
[1747662538811,0.03889534,103220.0,103210.0,0.22284547]
[1747662538963,0.03874991,103220.0,103210.0,0.22270004]
[1747662539237,0.03874991,103220.0,103210.0,0.22370004]
[1747662539444,0.02906224,103220.0,103210.0,0.22370004]
[1747662539628,0.03875009,103220.0,103210.0,0.22370004]
[1747662539834,0.03875,103220.0,103210.0,0.22370004]
[1747662540034,0.03875009,103220.0,103210.0,0.22370004]
[1747662540315,0.02906224,103220.0,103210.0,0.22470004]
[1747662540513,0.03875,103220.0,103210.0,0.22470004]
[1747662540763,0.81370449,103220.0,103210.0,0.002]
[1747662540980,0.82339234,103220.0,103210.0,0.002]
[1747662541179,0.31044571,103220.0,103210.0,0.002]
[1747662541899,0.31044571,103220.0,103210.0,0.001]
[1747662542243,0.20346846,103210.0,103200.0,0.4011439]
[1747662542445,0.30077786,103210.0,103200.0,0.4011439]
[1747662542647,0.81432449,103210.0,103200.0,0.4011439]
[1747662543494,0.81432449,103210.0,103200.0,0.40199847]
[1747662543698,0.81432449,103210.0,103200.0,0.40299847]
[1747662543958,0.55659871,103210.0,103200.0,0.40299847]
[1747662544135,0.11668652,103210.0,103200.0,0.61617647]
[1747662544337,0.32015517,103210.0,103200.0,0.6258662]
[1747662544749,0.32015517,103210.0,103200.0,0.64524519]
[1747662544953,0.32015517,103210.0,103200.0,0.6258662]
[1747662545144,0.30077805,103210.0,103200.0,0.40299847]
[1747662545711,0.30077805,103210.0,103200.0,0.00299847]
[1747662546118,0.30077805,103210.0,103200.0,0.40299847]
[1747662546808,0.30461218,103210.0,103200.0,0.60648673]
[1747662547162,0.29492348,103210.0,103200.0,0.40299847]
[1747662547840,0.29477805,103210.0,103200.0,0.40285304]
[1747662548447,0.29477805,103210.0,103200.0,0.40595268]
[1747662549245,1.10572468,103210.0,103200.0,0.40595268]
[1747662549444,1.14952468,103210.0,103200.0,0.00595268]
[1747662549651,1.14952468,103210.0,103200.0,0.00285304]
[1747662549817,1.23223955,103210.0,103200.0,0.00285304]
[1747662550473,1.23223955,103210.0,103200.0,0.00185304]
[1747662551034,1.23238498,103210.0,103200.0,0.00085304]
[1747662551234,1.24238498,103210.0,103200.0,0.00085304]
[1747662551430,1.69879076,103210.0,103200.0,0.00085304]
[1747662551701,1.67879076,103210.0,103200.0,0.00085304]
[1747662551911,0.59609829,103190.0,103180.0,0.00085457]
[1747662552041,1.63189347,103190.0,103180.0,0.00085457]
[1747662552247,1.63189347,103190.0,103180.0,0.00070914]
[1747662552662,1.17548769,103190.0,103180.0,0.00070914]
[1747662552930,1.14712854,103190.0,103180.0,0.00070914]
[1747662553094,1.14912854,103190.0,103180.0,0.00070914]
[1747662553506,1.60509432,103190.0,103180.0,0.00070914]
[1747662553676,0.56736854,103190.0,103180.0,0.00070914]
[1747662554169,0.002,103190.0,103180.0,0.23614515]
[1747662554342,0.32219835,103190.0,103180.0,0.20423695]
[1747662554574,0.32319835,103190.0,103180.0,0.00070914]
[1747662554901,0.31150806,103190.0,103180.0,0.00070914]
[1747662555108,0.31050806,103190.0,103180.0,0.20423695]
[1747662555318,0.76791384,103190.0,103180.0,0.00070914]
[1747662555524,1.02252012,103190.0,103180.0,0.00070914]
[1747662555752,1.04452012,103190.0,103180.0,0.00070914]
[1747662555963,1.28444012,103190.0,103180.0,0.00070914]
[1747662556228,1.30664012,103190.0,103180.0,0.00070914]
[1747662556428,1.30632012,103190.0,103180.0,0.00070914]
[1747662556646,1.30617469,103190.0,103180.0,0.00056371]
[1747662557491,1.64617469,103190.0,103180.0,0.00056371]
[1747662558066,1.65617469,103190.0,103180.0,0.00056371]
[1747662558463,1.64617469,103190.0,103180.0,0.00056371]
[1747662558720,1.64517469,103190.0,103180.0,0.00056371]
[1747662559225,1.64453469,103190.0,103180.0,0.00056371]
[1747662559584,1.74384409,103190.0,103180.0,0.00056371]
[1747662559810,0.56778047,103170.0,103160.0,0.001]
[1747662560002,1.16549565,103170.0,103160.0,0.001]
[1747662560957,1.17549565,103170.0,103160.0,0.001]
[1747662561163,1.17549565,103170.0,103160.0,0.00085457]
[1747662561370,1.27280505,103170.0,103160.0,0.00085457]
[1747662561806,1.73921083,103170.0,103160.0,0.00085457]
[1747662562414,1.07792758,103150.0,103140.0,0.001]
[1747662562630,0.55332232,103130.0,103120.0,0.001]
[1747662562855,1.1030375,103130.0,103120.0,0.001]
[1747662563264,1.1030375,103130.0,103120.0,0.00060598]
[1747662563686,1.11757835,103130.0,103120.0,0.0007499]
[1747662564304,1.11772378,103130.0,103120.0,0.0007499]
[1747662564960,1.12425715,103130.0,103120.0,0.0007499]
[1747662565364,1.12425715,103130.0,103120.0,0.0027499]
[1747662565598,1.12411172,103130.0,103120.0,0.00260447]
[1747662566205,1.74224738,103130.0,103120.0,0.00260447]
[1747662566656,1.62665835,103130.0,103120.0,0.00260447]
[1747662566941,1.59505835,103130.0,103120.0,0.00260447]
[1747662567387,1.5805175,103130.0,103120.0,0.00260447]
[1747662567601,1.13865257,103130.0,103120.0,0.00260447]
[1747662567810,1.12411172,103130.0,103120.0,0.00260447]
[1747662568223,1.59505835,103130.0,103120.0,0.00260447]
[1747662568650,1.73636775,103130.0,103120.0,0.00260447]
[1747662568851,1.73651318,103130.0,103120.0,0.00260447]
[1747662569908,1.73636775,103130.0,103120.0,0.00245904]
[1747662570147,1.64905835,103130.0,103120.0,0.00245904]
[1747662570355,0.2133637,103110.0,103100.0,2.501]
[1747662570581,0.82601973,103110.0,103100.0,2.50148003]
[1747662570797,1.68305977,103110.0,103100.0,1.79118055]
[1747662570981,1.80712793,103110.0,103100.0,1.79118055]
[1747662571213,1.83139934,103110.0,103100.0,1.79118055]
[1747662571429,1.80912793,103110.0,103100.0,1.79118055]
[1747662571863,1.78236917,103110.0,103100.0,1.79118055]
[1747662572030,1.70604913,103110.0,103100.0,1.79118055]
[1747662572394,1.76431913,103110.0,103100.0,1.79118055]
[1747662572600,1.70604913,103110.0,103100.0,1.79118055]
[1747662573174,2.06569973,103110.0,103100.0,1.79118055]
[1747662573364,2.07569973,103110.0,103100.0,1.79118055]
[1747662574915,1.61929395,103110.0,103100.0,1.79118055]
[1747662575110,2.07569973,103110.0,103100.0,1.79118055]
[1747662575310,1.61929395,103110.0,103100.0,1.79118055]
[1747662575511,1.71660335,103110.0,103100.0,1.79118055]
[1747662575712,1.67220335,103110.0,103100.0,1.79118055]
[1747662576275,1.69330335,103110.0,103100.0,1.79118055]
[1747662576926,1.45566335,103110.0,103100.0,1.79118055]
[1747662577143,1.67220335,103110.0,103100.0,1.79118055]
[1747662579772,1.66220335,103110.0,103100.0,1.79118055]
[1747662580029,0.9727531,103110.0,103100.0,1.79118055]
[1747662580186,0.5523131,103110.0,103100.0,1.83508055]
[1747662580347,0.5523131,103110.0,103100.0,1.79118055]
[1747662580549,0.90685395,103110.0,103100.0,1.79118055]
[1747662580871,0.90485395,103110.0,103100.0,1.79118055]
[1747662581068,1.24152335,103110.0,103100.0,1.79118055]
[1747662581432,1.25043613,103110.0,103100.0,1.79118055]
[1747662581631,1.25243613,103110.0,103100.0,1.79118055]
[1747662582111,1.24943613,103110.0,103100.0,2.19118055]
[1747662582286,1.72764191,103110.0,103100.0,1.79118055]
[1747662582503,1.75064191,103110.0,103100.0,1.79118055]
[1747662583282,1.83091191,103110.0,103100.0,1.79118055]
[1747662583495,1.83391191,103110.0,103100.0,1.79118055]
[1747662584807,1.83395191,103110.0,103100.0,1.79118055]
[1747662585153,1.82395191,103110.0,103100.0,1.79118055]
[1747662585356,1.8486801,103110.0,103100.0,1.79118055]
[1747662585702,1.8386801,103110.0,103100.0,1.79118055]
[1747662588904,1.83969164,103110.0,103100.0,1.79118055]
[1747662591094,2.12969164,103110.0,103100.0,1.79118055]
[1747662591319,1.83969164,103110.0,103100.0,1.79118055]
[1747662591498,1.83801164,103110.0,103100.0,1.79118055]
[1747662592437,1.82801164,103110.0,103100.0,1.79118055]
[1747662592665,1.82501164,103110.0,103100.0,1.79118055]
[1747662592921,1.82701164,103110.0,103100.0,1.79118055]
[1747662593178,1.36959432,103110.0,103100.0,1.79118055]
[1747662593404,1.82701164,103110.0,103100.0,1.79118055]
[1747662593642,1.83101164,103110.0,103100.0,1.79118055]
[1747662596345,1.83101164,103110.0,103100.0,1.73651126]
[1747662596346,7.43086964,103110.0,103100.0,1.73651126]
[1747662597315,2.23311164,103110.0,103100.0,1.73651126]
[1747662597510,1.93307164,103110.0,103100.0,1.73651126]
[1747662597623,2.15334466,103110.0,103100.0,1.73651126]
[1747662601072,1.81360466,103110.0,103100.0,1.73651126]
[1747662601317,0.39685588,103110.0,103100.0,1.73651126]
[1747662601551,1.28113588,103110.0,103100.0,1.73651126]
[1747662601795,1.22286588,103110.0,103100.0,1.78441126]
[1747662602258,0.9753531,103110.0,103100.0,1.78441126]
[1747662602486,1.06851827,103110.0,103100.0,1.78441126]
[1747662602723,0.3136731,103110.0,103100.0,1.78441126]
[1747662602966,0.5532731,103110.0,103100.0,1.78441126]
[1747662603192,0.8902731,103110.0,103100.0,1.78441126]
[1747662603452,0.88811827,103110.0,103100.0,2.18441126]
[1747662603890,0.5492731,103110.0,103100.0,2.18441126]
[1747662604109,1.34646782,103110.0,103100.0,2.18441126]
[1747662604337,1.44377722,103110.0,103100.0,2.18441126]
[1747662604566,0.8892731,103110.0,103100.0,2.18441126]
[1747662605720,1.50759871,103110.0,103100.0,1.73651126]
[1747662605939,1.54079871,103110.0,103100.0,1.73651126]
[1747662606157,1.56409871,103110.0,103100.0,1.73651126]
[1747662606386,1.66140811,103110.0,103100.0,1.73651126]
[1747662606612,1.66040811,103110.0,103100.0,1.73651126]
[1747662606843,1.66759871,103110.0,103100.0,1.73651126]
[1747662607029,1.67259871,103110.0,103100.0,1.73651126]
[1747662607322,1.66959871,103110.0,103100.0,1.73651126]
[1747662607542,1.60798816,103110.0,103100.0,1.73651126]
[1747662607768,1.54429756,103110.0,103100.0,1.73651126]
[1747662607992,1.56899756,103110.0,103100.0,1.73651126]
[1747662608213,1.59618696,103110.0,103100.0,1.73651126]
[1747662608438,1.61028696,103110.0,103100.0,1.73651126]
[1747662608674,6.8591756,103110.0,103100.0,0.91567776]
[1747662608900,6.8591756,103110.0,103100.0,0.76514357]
[1747662609134,7.1631756,103110.0,103100.0,0.67826565]
[1747662609397,7.1631756,103110.0,103100.0,0.62553941]
[1747662609631,7.1631756,103110.0,103100.0,0.56661114]
[1747662609884,7.10761432,103110.0,103100.0,0.56661114]
[1747662610109,7.07685556,103110.0,103100.0,0.56661114]
[1747662610329,6.84925556,103110.0,103100.0,0.56661114]
[1747662610566,7.08677556,103110.0,103100.0,0.56661114]
[1747662611514,0.2037053,103090.0,103080.0,0.501]
[1747662611747,0.8786947,103090.0,103080.0,0.501]
[1747662611991,1.2976547,103090.0,103080.0,0.501]
[1747662612321,1.36859802,103090.0,103080.0,0.501]
[1747662612965,1.39772102,103090.0,103080.0,0.501]
[1747662614438,1.85491574,103090.0,103080.0,0.501]
[1747662614653,1.5642577,103090.0,103080.0,0.501]
[1747662614967,1.5642577,103090.0,103080.0,0.496]
[1747662617763,1.5351347,103090.0,103080.0,0.496]